fUST/lending_fUST_20260404
["ID","MTS","AMOUNT","RATE_DAILY","PERIOD"]
[419638148,1775247039073,-173.64564695,0.00024697,2]
[419638150,1775247039085,-500.0,0.00024697,2]
[419638153,1775247039096,-500.0,0.00024697,2]
[419638155,1775247039108,-500.0,0.00024697,2]
[419638157,1775247039121,-500.0,0.00024697,2]
[419638159,1775247039133,-500.0,0.00024697,2]
[419638161,1775247039145,-500.0,0.00024697,2]
[419638163,1775247039156,-500.0,0.00024697,2]
[419638166,1775247039169,-500.0,0.00024697,2]
[419638168,1775247039181,-500.0,0.00024697,2]
[419638170,1775247039194,-500.0,0.00024697,2]
[419638173,1775247039206,-1675392.52111088,0.00024698,2]
[419638175,1775247039217,-413.17145095,0.00024773,2]
[419638177,1775247039229,-500.0,0.00024773,2]
[419638179,1775247039240,-1235.62,0.00024793,2]
[419638181,1775247039252,-1405.0,0.00024793,2]
[419638184,1775247039263,-500.0,0.00024798,2]
[419638186,1775247039272,-249982.64996113,0.00024798,2]
[419638188,1775247039285,-54738.95076489,0.00024798,2]
[419638190,1775247039300,-5000.0,0.00024798,2]
[419638193,1775247039316,-38461.90170286,0.00024798,2]
[419638195,1775247039329,-36802.41406771,0.00024799,2]
[419638198,1775247039341,-20822.21883853,0.000248,2]
[419638200,1775247039353,-151.5,0.00024849,2]
[419638202,1775247039366,-298.5,0.00024849,2]
[419638204,1775247039377,-151.5,0.00024849,2]
[419638206,1775247039388,-298.5,0.00024849,2]
[419638209,1775247039401,-158.108,0.00024899,2]
[419638210,1775247039412,-200.0,0.00024899,2]
[419638213,1775247039424,-209222.565397,0.000249,2]
[419638215,1775247039437,-821.651628,0.000249,2]
[419638217,1775247039449,-821.651628,0.000249,2]
[419638219,1775247039460,-821.651628,0.000249,2]
[419638221,1775247039470,-821.651628,0.000249,2]
[419638223,1775247039480,-487.0,0.000249,2]
[419638225,1775247039490,-487.0,0.000249,2]
[419638227,1775247039500,-487.0,0.000249,2]
[419638230,1775247039512,-487.0,0.000249,2]
[419638232,1775247039525,-487.0,0.000249,2]
[419638234,1775247039537,-487.0,0.000249,2]
[419638236,1775247039546,-487.0,0.000249,2]
[419638238,1775247039556,-487.0,0.000249,2]
[419638240,1775247039568,-487.0,0.000249,2]
[419638242,1775247039580,-487.0,0.000249,2]
[419638244,1775247039592,-487.0,0.000249,2]
[419638247,1775247039604,-487.0,0.000249,2]
[419638249,1775247039615,-487.0,0.000249,2]
[419638251,1775247039626,-487.0,0.000249,2]
[419638253,1775247039639,-487.0,0.000249,2]
[419638255,1775247039651,-677.56,0.000249,2]
[419638257,1775247039662,-1240.0,0.00024932,5]
[419638259,1775247039674,-160.0,0.00024935,14]
[419638261,1775247039684,-227.922867,0.00024935,14]
[419638264,1775247039695,-295.845735,0.00024935,14]
[419638266,1775247039706,-454.315943,0.00024935,14]
[419638268,1775247039716,-398.48866446,0.00024973,2]
[419638270,1775247039727,-322.22533577,0.00024973,2]
[419638272,1775247039738,-500.0,0.00024973,2]
[419638274,1775247039749,-500.0,0.00024973,2]
[419638276,1775247039760,-500.0,0.00024973,2]
[419638278,1775247039771,-500.0,0.00024973,2]
[419638280,1775247039781,-500.0,0.00024973,2]
[419638282,1775247039792,-500.0,0.00024973,2]
[419638284,1775247039803,-57256.02696087,0.0002499,2]
[419638287,1775247039817,-21202.43506293,0.0002499,2]
[419638289,1775247039828,-30671.77969585,0.00025,15]
[419638575,1775247043859,-184.0,0.00023441,2]
[419638576,1775247043872,-97335.63035416,0.00025,15]
[419638577,1775247043883,-156.0,0.00025,2]
[419638578,1775247043893,-400.0,0.00025,2]
[419638579,1775247043904,-224.0,0.00025,2]
[419638580,1775247043915,-4085.08443278,0.00025,4]
[419638581,1775247043926,-10582.8824778,0.00025,2]
[419638582,1775247043937,-108983.53975966,0.00025,2]
[419638583,1775247043948,-2697.92749953,0.00025,2]
[419638584,1775247043958,-10364.0,0.00025,2]
[419638585,1775247043969,-500.0,0.00025,2]
[419638586,1775247043979,-7208.43145846,0.00025,2]
[419638587,1775247043989,-821.651628,0.00025,2]
[419638588,1775247043999,-821.651628,0.00025,2]
[419638589,1775247044010,-821.651628,0.00025,2]
[419638590,1775247044020,-821.651628,0.00025,2]
[419638591,1775247044030,-500.0,0.00025072,2]
[419638592,1775247044040,-178.978,0.000251,9]
[419638593,1775247044050,-2579.17784983,0.00025106,2]
[419638594,1775247044060,-151.5,0.0002516,2]
[419638595,1775247044070,-151.5,0.0002516,2]
[419638596,1775247044080,-297.0,0.0002516,2]
[419638597,1775247044090,-300.0,0.0002516,2]
[419638598,1775247044100,-151.5,0.0002516,2]
[419638599,1775247044110,-151.5,0.0002516,2]
[419638600,1775247044121,-297.0,0.0002516,2]
[419638601,1775247044131,-1488.775786,0.0002516,5]
[419638602,1775247044141,-500.0,0.00025173,2]
[419638603,1775247044152,-500.0,0.00025173,2]
[419638604,1775247044162,-500.18906294,0.00025173,2]
[419638605,1775247044173,-326.17142517,0.00025173,2]
[419638606,1775247044183,-500.0,0.00025173,2]
[419638607,1775247044193,-800.0,0.00025179,2]
[419638608,1775247044203,-1000.0,0.0002518,5]
[419638609,1775247044213,-1000.0,0.000252,5]
[419638610,1775247044223,-789.0,0.000252,2]
[419638611,1775247044233,-1240.0,0.00025205,5]
[419638612,1775247044243,-1000.0,0.0002522,5]
[419638613,1775247044253,-800.0,0.00025221,2]
[419638615,1775247044262,-1000.0,0.0002524,5]
[419638617,1775247044272,-800.0,0.00025241,2]
[419638619,1775247044282,-800.0,0.00025243,2]
[419638621,1775247044292,-800.0,0.00025243,2]
[419638623,1775247044301,-800.0,0.00025245,2]
[419638625,1775247044311,-1000.0,0.0002526,5]
[419638627,1775247044320,-800.0,0.00025267,2]
[419638629,1775247044330,-800.0,0.00025268,2]
[419638631,1775247044339,-800.0,0.00025269,2]
[419638633,1775247044348,-1000.0,0.0002528,5]
[419638636,1775247044357,-1000.0,0.000253,5]
[419638638,1775247044367,-800.0,0.00025303,2]
[419638640,1775247044376,-1000.0,0.0002532,5]
[419638642,1775247044386,-1000.0,0.00025321,2]
[419638644,1775247044395,-26152.8206746,0.00025334,2]
[419638646,1775247044405,-1000.0,0.0002534,5]
[419638648,1775247044414,-500.0,0.00025346,2]
[419638650,1775247044423,-1000.0,0.0002536,5]
[419638652,1775247044432,-800.0,0.00025362,2]
[419638654,1775247044441,-3231.7330959,0.00025373,2]
[419638656,1775247044451,-9030.6678135,0.00025373,2]
[419638658,1775247044460,-741.24871311,0.00025374,2]
[419638660,1775247044469,-800.0,0.00025379,2]
[419638662,1775247044478,-1000.0,0.0002538,5]
[419638664,1775247044488,-1248.129298,0.0002538,5]
[419638666,1775247044497,-160.0,0.00025382,14]
[419638668,1775247044506,-170.612013,0.00025382,14]
[419638670,1775247044515,-181.224026,0.00025382,14]
[419638672,1775247044525,-160.0,0.00025382,14]
[419638674,1775247044534,-250.409731,0.00025382,14]
[419638676,1775247044543,-340.819463,0.00025382,14]
[419638678,1775247044552,-160.0,0.00025382,14]
[419638680,1775247044562,-163.438279,0.00025382,14]
[419638682,1775247044571,-166.876559,0.00025382,14]
[419638684,1775247044580,-800.0,0.00025389,2]
[419638686,1775247044589,-1000.0,0.000254,5]
[419638688,1775247044598,-1000.0,0.000254,5]
[419638689,1775247044608,-151.0,0.000254,20]
[419638692,1775247044618,-305.98155999,0.00025404,2]
[419638694,1775247044628,-349.69321142,0.00025404,2]
[419638696,1775247044637,-545.8492472,0.00025404,2]
[419638698,1775247044646,-800.0,0.00025416,2]
[419638700,1775247044656,-800.0,0.00025429,2]
[419638702,1775247044665,-151.0,0.00025434,2]
[419638703,1775247044674,-151.0,0.00025434,2]
[419638706,1775247044685,-151.0,0.00025434,2]
[419638708,1775247044694,-151.0,0.00025434,2]
[419638710,1775247044704,-52305.6413492,0.00025434,2]
[419638712,1775247044713,-2669.58863397,0.00025437,2]
[419638713,1775247044723,-1534.5096473,0.00025439,2]
[419638715,1775247044732,-548595.82013298,0.00025444,2]
[419638720,1775247044766,-0.00129691,0.00025444,2]
[419638723,1775247044780,-414.48375,0.00025444,2]
[419638725,1775247044791,-4844.16448785,0.00025444,2]
[419638727,1775247044802,-8839.75889643,0.00025444,2]
[419638729,1775247044813,-10839.64487836,0.00025444,2]
[419638942,1775247046852,-1367.87942627,0.00024855,2]
[419644304,1775247101909,374.529798,0.0002744,120]
[419645021,1775247145766,187.264899,0.0002744,120]
[419645153,1775248238540,-5000.0,0.00012389,2]
[419645155,1775248238550,-5000.0,0.00012514,2]
[419645157,1775248238559,-1000.0,0.00013699,2]
[419645159,1775248238569,-180.0,0.00022,2]
[419645161,1775248238578,-1000.0,0.00022982,30]
[419645163,1775248238588,-180.0,0.00023,2]
[419645165,1775248238597,-180.0,0.00024,2]
[419645167,1775248238606,-163.0,0.00024164,3]
[419645169,1775248238615,-270.83333333,0.00024299,2]
[419645171,1775248238626,-28228.91288461,0.00024397,2]
[419645174,1775248238641,-33439.19554571,0.00024397,2]
[419645176,1775248238652,-247301.29237614,0.00024397,2]
[419645182,1775248238703,-318226.14196495,0.00024397,2]
[419645184,1775248238712,-500.0,0.00024473,2]
[419645186,1775248238721,-500.0,0.00024473,2]
[419645188,1775248238730,-2398.4119403,0.00024481,2]
[419645190,1775248238739,-200.0,0.00024581,2]
[419645192,1775248238748,-1240.0,0.00024658,5]
[419645194,1775248238758,-27849.87701582,0.000248,2]
[419645196,1775248238767,-680.746,0.00024868,2]
[419645198,1775248238776,-184.0,0.00024868,2]
[419645200,1775248238785,-500.0,0.00024886,2]
[419645202,1775248238794,-500.0,0.00024886,2]
[419645204,1775248238804,-500.0,0.00024886,2]
[419645206,1775248238813,-507.75152326,0.00024886,2]
[419645208,1775248238822,-455.2608298,0.00024888,2]
[419645211,1775248238831,-455.3221879,0.00024888,2]
[419645213,1775248238840,-189.13,0.000249,2]
[419645215,1775248238850,-200.0,0.000249,2]
[419645217,1775248238859,-1240.0,0.00024932,5]
[419645219,1775248238868,-180.0,0.00025,2]
[419645221,1775248238876,-1000.0,0.00025021,2]
[419645223,1775248238885,-860.96702841,0.00025021,2]
[419645225,1775248238894,-1443.81928526,0.00025029,2]
[419645227,1775248238903,-997.79471813,0.00025166,82]
[419645229,1775248238912,-178.97950586,0.0002518,9]
[419645231,1775248238920,-1240.0,0.00025205,5]
[419645233,1775248238929,-1248.129298,0.0002538,5]
[419645235,1775248238938,-880.894419,0.000254,5]
[419645237,1775248238947,-1000.0,0.000254,5]
[419645239,1775248238957,-500.0,0.00025434,2]
[419645241,1775248238967,-2418.0173087,0.00025434,2]
[419645243,1775248238977,-160.8985166,0.00025434,2]
[419645244,1775248238987,-263684.59941934,0.00025444,2]
[419645732,1775248244715,-2367.3153688,0.00025444,2]
[419645974,1775248246956,-455.2608298,0.00024888,2]
[419645976,1775248246967,-41803.50968319,0.00025444,2]
[419646646,1775248278263,2542.449875,0.0002744,120]
[419646649,1775248338719,-500.0,0.00017268,2]
[419646650,1775248338738,-500.0,0.00018131,2]
[419646651,1775248338749,-62.57836695,0.00018131,2]
[419646701,1775248681211,320.0,0.00030685,120]
[419646776,1775249432714,-675.42364712,0.00012389,2]
[419646777,1775249432726,-967.81996793,0.00012389,2]
[419646778,1775249432769,-410.71337545,0.00012389,2]
[419646779,1775249432781,-948.33945034,0.00012389,2]
[419646780,1775249432823,-394.47750578,0.00012389,2]
[419646781,1775249432834,-1169.56781786,0.00012389,2]
[419646800,1775249438745,-433.65823552,0.00012389,2]
[419646801,1775249438755,-996.29703947,0.00012514,2]
[419646802,1775249438852,-1000.0,0.00012514,2]
[419646803,1775249438863,-1031.04615852,0.00012514,2]
[419646906,1775249441539,-3850.27509618,0.00012389,2]
[419646913,1775249441593,-976.72383284,0.00012389,2]
[419646915,1775249441604,-173.00107098,0.00012389,2]
[419646917,1775249441614,-1972.65680201,0.00012514,2]
[419646919,1775249441623,-151.0,0.0001338,2]
[419646921,1775249441632,-151.0,0.00013651,2]
[419646923,1775249441642,-1000.0,0.00013699,2]
[419646924,1775249441651,-151.0,0.00019592,2]
[419646926,1775249441660,-167.0,0.00022,2]
[419646928,1775249441670,-156.0,0.00022,2]
[419646930,1775249441680,-172.0,0.00022,2]
[419646932,1775249441689,-1407.1707138,0.00022921,2]
[419646934,1775249441699,-167.0,0.00023,2]
[419646936,1775249441709,-270.83333333,0.00023,2]
[419646938,1775249441719,-2827.1825127,0.00023,2]
[419646940,1775249441728,-347.962187,0.00023269,2]
[419646942,1775249441737,-167.0,0.00024,2]
[419646944,1775249441747,-1830.19519928,0.0002419,2]
[419646946,1775249441757,-479.95080956,0.0002419,2]
[419647150,1775249443922,-3884.64735648,0.0002419,2]
[419647152,1775249443934,-2323.8385751,0.0002419,2]
[419647154,1775249443946,-5191.26591797,0.0002419,2]
[419647156,1775249443955,-1830.19519928,0.00024201,2]
[419647158,1775249443966,-1830.19519928,0.00024212,2]
[419647160,1775249443976,-1830.19519928,0.00024222,2]
[419647162,1775249443985,-1830.19519928,0.00024233,2]
[419647164,1775249443994,-347.962187,0.00024248,2]
[419647166,1775249444004,-326.17142517,0.00024273,2]
[419647168,1775249444014,-500.0,0.00024273,2]
[419647170,1775249444024,-500.0,0.00024273,2]
[419647172,1775249444033,-500.0,0.00024273,2]
[419647174,1775249444043,-500.0,0.00024273,2]
[419647176,1775249444054,-500.0,0.00024273,2]
[419647179,1775249444064,-500.0,0.00024273,2]
[419647181,1775249444074,-500.0,0.00024273,2]
[419647184,1775249444095,-500.0,0.00024273,2]
[419647186,1775249444106,-500.0,0.00024273,2]
[419647188,1775249444116,-599.60298507,0.00024278,2]
[419647190,1775249444126,-2398.4119403,0.00024278,2]
[419647192,1775249444136,-262.23334801,0.00024287,2]
[419647194,1775249444146,-220.19484046,0.00024287,2]
[419647196,1775249444156,-500.0,0.00024289,2]
[419647198,1775249444166,-500.0,0.00024289,2]
[419647200,1775249444176,-437.16342155,0.00024289,2]
[419647202,1775249444186,-272.19614495,0.00024289,2]
[419647204,1775249444196,-500.0,0.00024289,2]
[419647206,1775249444206,-500.0,0.00024289,2]
[419647208,1775249444216,-500.0,0.00024289,2]
[419647210,1775249444225,-368.05715867,0.00024289,2]
[419647213,1775249444235,-500.0,0.00024289,2]
[419647215,1775249444245,-500.0,0.00024289,2]
[419647217,1775249444255,-500.0,0.00024289,2]
[419647219,1775249444264,-500.0,0.00024289,2]
[419647221,1775249444274,-500.0,0.00024289,2]
[419647223,1775249444284,-500.0,0.00024289,2]
[419647225,1775249444294,-587.36476426,0.00024289,2]
[419647227,1775249444303,-500.0,0.00024289,2]
[419647229,1775249444313,-303.29773673,0.00024289,2]
[419647231,1775249444324,-500.0,0.00024289,2]
[419647233,1775249444334,-500.0,0.00024289,2]
[419647235,1775249444344,-500.0,0.00024289,2]
[419647237,1775249444354,-209.24707841,0.00024289,2]
[419647239,1775249444364,-500.0,0.00024289,2]
[419647241,1775249444373,-500.0,0.00024289,2]
[419647243,1775249444383,-500.0,0.00024289,2]
[419647246,1775249444392,-500.0,0.00024289,2]
[419647250,1775249444402,-496.17500304,0.00024289,2]
[419647252,1775249444411,-500.0,0.00024289,2]
[419647254,1775249444421,-500.0,0.00024289,2]
[419647256,1775249444430,-500.0,0.00024289,2]
[419647258,1775249444440,-500.0,0.00024289,2]
[419647260,1775249444449,-500.0,0.00024289,2]
[419647262,1775249444458,-420.55144127,0.00024289,2]
[419647264,1775249444468,-500.0,0.00024289,2]
[419647267,1775249444487,-500.0,0.00024289,2]
[419647269,1775249444502,-500.0,0.00024289,2]
[419647272,1775249444515,-500.0,0.00024289,2]
[419647274,1775249444528,-500.0,0.00024289,2]
[419647277,1775249444542,-500.0,0.00024289,2]
[419647279,1775249444554,-500.0,0.00024289,2]
[419647281,1775249444565,-500.0,0.00024289,2]
[419647283,1775249444575,-307.61973999,0.00024289,2]
[419647286,1775249444588,-500.0,0.00024289,2]
[419647288,1775249444601,-500.0,0.00024289,2]
[419647290,1775249444613,-500.0,0.00024289,2]
[419647293,1775249444626,-500.0,0.00024289,2]
[419647295,1775249444640,-500.0,0.00024289,2]
[419647297,1775249444652,-500.0,0.00024289,2]
[419647300,1775249444665,-500.0,0.00024289,2]
[419647302,1775249444677,-500.0,0.00024289,2]
[419647304,1775249444689,-500.0,0.00024289,2]
[419647307,1775249444702,-500.0,0.00024289,2]
[419647309,1775249444714,-500.0,0.00024289,2]
[419647311,1775249444726,-500.0,0.00024289,2]
[419647313,1775249444738,-500.0,0.00024289,2]
[419647316,1775249444749,-400.00000001,0.00024289,2]
[419647318,1775249444761,-500.0,0.00024289,2]
[419647320,1775249444772,-500.0,0.00024289,2]
[419647322,1775249444784,-500.0,0.00024289,2]
[419647325,1775249444795,-500.0,0.00024289,2]
[419647327,1775249444806,-190.94385885,0.00024289,2]
[419647329,1775249444821,-309.05614115,0.00024289,2]
[419647331,1775249444831,-500.0,0.00024289,2]
[419647334,1775249444843,-500.0,0.00024289,2]
[419647336,1775249444854,-500.0,0.00024289,2]
[419647338,1775249444865,-500.0,0.00024289,2]
[419647340,1775249444877,-500.0,0.00024289,2]
[419647343,1775249444889,-500.0,0.00024289,2]
[419647345,1775249444900,-170.80605538,0.00024289,2]
[419647347,1775249444912,-500.0,0.00024289,2]
[419647350,1775249444924,-500.0,0.00024289,2]
[419647352,1775249444936,-500.0,0.00024289,2]
[419647354,1775249444949,-500.0,0.00024289,2]
[419647357,1775249444961,-500.0,0.00024289,2]
[419647359,1775249444972,-500.0,0.00024289,2]
[419647361,1775249444984,-500.0,0.00024289,2]
[419647364,1775249444996,-500.0,0.00024289,2]
[419647366,1775249445007,-500.0,0.00024289,2]
[419647368,1775249445017,-500.0,0.00024289,2]
[419647370,1775249445027,-500.0,0.00024289,2]
[419647372,1775249445037,-500.0,0.00024289,2]
[419647374,1775249445046,-500.0,0.00024289,2]
[419647376,1775249445057,-500.0,0.00024289,2]
[419647379,1775249445071,-500.0,0.00024289,2]
[419647381,1775249445082,-500.0,0.00024289,2]
[419647384,1775249445094,-500.0,0.00024289,2]
[419647386,1775249445105,-500.0,0.00024289,2]
[419647388,1775249445115,-500.0,0.00024289,2]
[419647390,1775249445127,-500.0,0.00024289,2]
[419647392,1775249445139,-500.0,0.00024289,2]
[419647395,1775249445151,-500.0,0.00024289,2]
[419647397,1775249445164,-500.0,0.00024289,2]
[419647399,1775249445174,-500.0,0.00024289,2]
[419647402,1775249445186,-500.0,0.00024289,2]
[419647404,1775249445199,-500.0,0.00024289,2]
[419647406,1775249445212,-500.0,0.00024289,2]
[419647409,1775249445225,-500.0,0.00024289,2]
[419647411,1775249445237,-500.0,0.00024289,2]
[419647413,1775249445248,-500.0,0.00024289,2]
[419647415,1775249445261,-500.0,0.00024289,2]
[419647417,1775249445272,-500.0,0.00024289,2]
[419647419,1775249445285,-500.0,0.00024289,2]
[419647422,1775249445297,-500.0,0.00024289,2]
[419647424,1775249445308,-500.0,0.00024289,2]
[419647426,1775249445323,-500.0,0.00024289,2]
[419647428,1775249445337,-500.0,0.00024289,2]
[419647431,1775249445349,-500.0,0.00024289,2]
[419647433,1775249445362,-500.0,0.00024289,2]
[419647435,1775249445374,-500.0,0.00024289,2]
[419647438,1775249445387,-500.0,0.00024292,2]
[419647440,1775249445398,-26720.00129692,0.00024293,2]
[419647442,1775249445409,-197701.72868475,0.00024293,2]
[419647444,1775249445426,-20448.438993,0.00024293,2]
[419647594,1775249447099,-6657.0266641,0.00024293,2]
[419647600,1775249447152,-2934.58948276,0.00024293,2]
[419648136,1775249550568,200.0,0.00024311,120]
[419648141,1775249670444,200.0,0.00032168,120]
[419648144,1775249752261,1030.30493276,0.00027397,120]
[419648146,1775249910441,200.0,0.00029407,120]
[419648147,1775250030484,200.0,0.00032023,120]
[419648149,1775250210443,200.0,0.0003088,120]
[419648157,1775250391137,200.0,0.00031897,120]
[419648173,1775250510462,200.0,0.00031545,120]
[419648209,1775250601108,192.53149985,0.00025,120]
[419648210,1775250601824,8741.84473955,7e-05,2]
[419648213,1775250607837,535.00637285,0.00025,120]
[419648216,1775250609753,474.21726964,0.00026,120]
[419648217,1775250610004,446.9870219,0.00025,120]
[419648218,1775250613088,166.03419658,0.0003,120]
[419648226,1775250631731,-300.58662455,0.00013699,2]
[419648227,1775250631783,-699.41337545,0.00013699,2]
[419648228,1775250631793,-157.0,0.00022,2]
[419648229,1775250631803,-936.88735796,0.00022,2]
[419648230,1775250631838,-4995.89409511,0.00022,2]
[419648231,1775250631849,-295.30926659,0.00022,2]
[419648232,1775250631860,-522.38754335,0.00022,2]
[419648245,1775250638172,-440.46188119,0.00022,2]
[419648316,1775250640947,-1075.08886253,0.00022,2]
[419648415,1775250643175,-7864.83811585,0.00022,2]
[419648416,1775250643188,-3954.16979638,0.00022,2]
[419648422,1775250646168,-258.58443364,0.00022,2]
[419648423,1775250646429,-26665.66992011,0.00022,2]
[419648424,1775250646441,-1037.25510247,0.00022,2]
[419648425,1775250646483,-614230.84868052,0.00022,2]
[419648426,1775250646495,-15630.2,0.00022,2]
[419648427,1775250646507,-433672.68761756,0.00022,2]
[419648551,1775251799279,-300.0,0.00023087,30]
[419648600,1775251832100,-667.68346952,0.00012388,2]
[419648602,1775251832111,-4332.31653048,0.00012388,2]
[419648604,1775251832121,-1200.0,0.00012512,2]
[419648605,1775251832131,-5000.0,0.00012513,2]
[419648606,1775251832141,-300.0,0.00013021,2]
[419648607,1775251832150,-300.0,0.00013021,2]
[419648608,1775251832160,-79.59448191,0.00013172,2]
[419648941,1775251841209,-5000.0,0.0001304,2]
[419648943,1775251841219,-73.40551809,0.00013172,2]
[419648945,1775251841229,-152.0,0.00013172,2]
[419648947,1775251841239,-151.0,0.00013379,2]
[419648949,1775251841249,-1000.0,0.00013699,2]
[419648951,1775251841259,-840.0,0.00013763,2]
[419648953,1775251841269,-151.0,0.00013928,2]
[419648955,1775251841280,-158.92556795,0.00014172,2]
[419648957,1775251841290,-154.0,0.00014172,2]
[419648959,1775251841299,-420.0,0.00014279,2]
[419648961,1775251841309,-587.0,0.00015659,2]
[419648964,1775251841319,-823.0,0.00017173,2]
[419648966,1775251841329,-159.025432,0.00018282,2]
[419648968,1775251841339,-439.0,0.00018832,2]
[419648970,1775251841349,-2000.0,0.00021,2]
[419648972,1775251841359,-2532.09245669,0.00021894,2]
[419648974,1775251841368,-253847.02275525,0.00021894,2]
[419648976,1775251841380,-574.19621049,0.00021894,2]
[419648979,1775251841390,-1174.6165,0.00021897,2]
[419648981,1775251841400,-500.0,0.00021973,2]
[419648983,1775251841410,-500.0,0.00021973,2]
[419648986,1775251841420,-500.0,0.00021973,2]
[419648988,1775251841429,-477.62742228,0.00021973,2]
[419648990,1775251841439,-500.0,0.00021973,2]
[419648992,1775251841449,-500.0,0.00021973,2]
[419648994,1775251841459,-500.0,0.00021973,2]
[419648996,1775251841468,-488.85754188,0.00021973,2]
[419648998,1775251841478,-500.0,0.00021973,2]
[419649000,1775251841488,-504.57204641,0.00021973,2]
[419649002,1775251841498,-500.0,0.00021973,2]
[419649004,1775251841508,-500.0,0.00021973,2]
[419649006,1775251841518,-500.0,0.00021973,2]
[419649008,1775251841527,-500.0,0.00021973,2]
[419649010,1775251841537,-500.0,0.00021973,2]
[419649012,1775251841547,-500.0,0.00021994,2]
[419649015,1775251841556,-500.0,0.00021994,2]
[419649017,1775251841566,-500.0,0.00021994,2]
[419649019,1775251841576,-500.0,0.00021994,2]
[419649021,1775251841585,-562.14937659,0.00021994,2]
[419649023,1775251841594,-500.0,0.00021994,2]
[419649025,1775251841605,-500.0,0.00021994,2]
[419649027,1775251841614,-165.22790453,0.00021994,2]
[419649029,1775251841624,-500.0,0.00021994,2]
[419649031,1775251841634,-504.83737473,0.00021994,2]
[419649033,1775251841643,-500.0,0.00021994,2]
[419649035,1775251841652,-500.0,0.00021994,2]
[419649037,1775251841662,-500.0,0.00021994,2]
[419649039,1775251841671,-500.0,0.00021994,2]
[419649041,1775251841680,-521.30574985,0.00021994,2]
[419649043,1775251841690,-662.50365559,0.00021994,2]
[419649045,1775251841699,-200.84663778,0.00021994,2]
[419649047,1775251841709,-500.0,0.00021994,2]
[419649049,1775251841718,-500.0,0.00021994,2]
[419649051,1775251841728,-662.50365559,0.00021994,2]
[419649053,1775251841738,-500.0,0.00021994,2]
[419649055,1775251841747,-662.50365559,0.00021994,2]
[419649058,1775251841757,-500.0,0.00021994,2]
[419649060,1775251841767,-500.0,0.00021994,2]
[419649062,1775251841776,-662.50365559,0.00021994,2]
[419649064,1775251841786,-500.0,0.00021994,2]
[419649066,1775251841795,-662.50365559,0.00021994,2]
[419649068,1775251841804,-500.0,0.00021994,2]
[419649070,1775251841813,-500.0,0.00021994,2]
[419649072,1775251841823,-500.0,0.00021994,2]
[419649074,1775251841832,-662.50365559,0.00021994,2]
[419649076,1775251841842,-500.0,0.00021994,2]
[419649078,1775251841852,-500.0,0.00021994,2]
[419649080,1775251841862,-662.50365559,0.00021994,2]
[419649082,1775251841872,-500.0,0.00021994,2]
[419649084,1775251841882,-662.50365559,0.00021994,2]
[419649086,1775251841892,-500.0,0.00021994,2]
[419649088,1775251841902,-662.50365559,0.00021994,2]
[419649090,1775251841912,-500.0,0.00021994,2]
[419649092,1775251841922,-333.70762848,0.00021994,2]
[419649094,1775251841932,-662.50365559,0.00021994,2]
[419649096,1775251841943,-500.0,0.00021994,2]
[419649098,1775251841953,-662.50365559,0.00021994,2]
[419649101,1775251841963,-500.0,0.00021994,2]
[419649103,1775251841974,-662.50365559,0.00021994,2]
[419649105,1775251841984,-500.0,0.00021994,2]